[Event "FRA-chT Top 12 2019"]
[Site "Brest"]
[Date "2019.05.25"]
[Round "8.6"]
[White "Giroyan, Gary"]
[Black "Bailet, Pierre"]
[Result "0-1"]
[ECO "D31"]
[WhiteElo "2409"]
[BlackElo "2466"]
[Annotator "ChessBase"]
[PlyCount "106"]
[EventDate "2019.05.18"]
[EventType "team-tourn"]
[EventCountry "FRA"]
[SourceTitle "playchess.com"]
[Source "ChessBase"]
[SourceQuality "1"]
[TimeControl "40/5400+30:1800+30"]

1. d4 {[%emt 0:00:00]} d5 {[%emt 0:00:00]} 2. c4 {[%emt 0:00:00]} e6 {[%emt 0:00:12]} 3. Nc3 {[%emt 0:00:00]} Be7 {[%emt 0:00:15]} 4. Qc2 {[%emt 0:02:53]} dxc4 {[%emt 0:08:58]} 5. e3 {[%emt 0:06:29]} a6 {[%emt 0:03:15]} 6. a4 {[%emt 0:07:11]} b6 {[%emt 0:13:53]} 7. Bxc4 {[%emt 0:03:11]} Bb7 {[%emt 0:00:10]} 8. Nge2 {[%emt 0:06:19]} Nf6 {[%emt 0:02:49]} 9. O-O {[%emt 0:00:43]} O-O {[%emt 0:01:04]} 10. e4 {[%emt 0:15:56]} c5 {[%emt 0:08:14]} 11. dxc5 {[%emt 0:05:27]} Bxc5 {[%emt 0:04:19]} 12. Bg5 {[%emt 0:04:57]} Nbd7 {[%emt 0:04:10]} 13. Ng3 {[%emt 0:15:12]} Qc7 {[%emt 0:10:46]} 14. Qe2 {[%emt 0:01:06]} h6 {[%emt 0:00:59]} 15. Bxf6 {[%emt 0:00:42]} Nxf6 {[%emt 0:00:10]} 16. Rad1 {[%emt 0:03:43]} Qf4 {[%emt 0:01:45]} 17. Nh5 {[%emt 0:11:41]} Nxh5 {[%emt 0:01:21]} 18. Qxh5 {[%emt 0:00:01]} Bxe4 {[%emt 0:02:42]} 19. Nxe4 {[%emt 0:00:11]} Qxe4 {[%emt 0:00:06]} 20. b3 {[%emt 0:00:05]} a5 {[%emt 0:02:26]} 21. Rde1 {[%emt 0:05:16]} Qc2 {[%emt 0:03:46]} 22. Re2 {[%emt 0:01:07]} Qc3 {[%emt 0:00:13]} 23. Re4 {[%emt 0:00:42]} Rad8 {[%emt 0:01:29]} 24. Rf4 {[%emt 0:00:01]} Rd2 {[%emt 0:02:55]} 25. g3 {[%emt 0:00:40]} Qc2 {[%emt 0:03:03]} 26. Qf3 {[%emt 0:03:52]} g6 {[%emt 0:03:32]} 27. h4 {[%emt 0:00:52]} Kg7 {[%emt 0:01:29]} 28. Kg2 {[%emt 0:00:03]} h5 {[%emt 0:03:47]} 29. Qb7 {[%emt 0:00:35]} Kg8 {[%emt 0:02:38]} 30. Rf3 {[%emt 0:01:15]} Qb2 {[%emt 0:00:42]} 31. Rf4 {[%emt 0:00:47]} Qe5 {[%emt 0:02:12]} 32. Qf3 {[%emt 0:00:41]} Rb2 {[%emt 0:01:43]} 33. Qd3 {[%emt 0:00:37]} Bb4 {[%emt 0:07:30]} 34. Rd1 {[%emt 0:00:07]} Be7 {[%emt 0:00:36]} 35. Qf3 {[%emt 0:00:12]} Bc5 {[%emt 0:00:26]} 36. Qb7 {[%emt 0:01:29]} Qe3 {[%emt 0:00:41]} 37. Rf1 {[%emt 0:00:30]} Rd2 {[%emt 0:00:51]} 38. Rf3 {[%emt 0:01:07]} Qd4 {[%emt 0:00:34]} 39. Rf4 {[%emt 0:00:05]} Qd7 {[%emt 0:00:41]} 40. Qf3 {[%emt 0:00:43]} Qe7 {[%emt 0:01:34]} 41. Qc6 {[%emt 0:03:36]} Rfd8 {[%emt 0:04:41]} 42. Re1 {[%emt 0:02:46]} R8d6 {[%emt 0:02:02]} 43. Qa8+ {[%emt 0:02:32]} Kg7 {[%emt 0:00:39]} 44. Rf3 {[%emt 0:01:03]} Rb2 {[%emt 0:02:27]} 45. Re2 {[%emt 0:09:54]} Rb1 {[%emt 0:04:03]} 46. Qe4 {[%emt 0:01:51]} Rdd1 {[%emt 0:00:43]} 47. Rd3 {[%emt 0:00:44]} Rg1+ {[%emt 0:02:03]} 48. Kf3 {[%emt 0:02:14]} Rbf1 {[%emt 0:02:34]} 49. Rdd2 {[%emt 0:03:10]} Kh7 {[%emt 0:01:18]} 50. Ba6 {[%emt 0:07:10]} Bd6 {[%emt 0:00:50]} 51. Ke3 {[%emt 0:00:12]} Bxg3 {[%emt 0:00:38]} 52. Rd5 {[%emt 0:01:16]} Qf6 {[%emt 0:02:17]} 53. Rxh5+ {[%emt 0:00:35]} Kg7 {[%emt 0:00:07]} 0-1

[Event "FRA-chT Top 12 2019"]
[Site "Brest"]
[Date "2019.05.25"]
[Round "8.6"]
[White "Milliet, Sophie"]
[Black "Jeanne, Mickael"]
[Result "1-0"]
[ECO "B04"]
[WhiteElo "2400"]
[BlackElo "2150"]
[Annotator "NA"]
[PlyCount "71"]
[EventDate "2019.05.18"]
[EventType "team-tourn"]
[EventCountry "FRA"]
[SourceTitle "playchess.com"]
[Source "ChessBase"]
[SourceQuality "1"]
[TimeControl "40/5400+30:1800+30"]

1. e4 {[%emt 0:00:00]} Nf6 {[%emt 0:00:00]} 2. e5 {[%emt 0:00:00]} Nd5 {[%emt 0:00:00]} 3. d4 {[%emt 0:00:00]} d6 {[%emt 0:00:00]} 4. Nf3 {[%emt 0:00:00]} g6 {[%emt 0:00:04]} 5. Bc4 {[%emt 0:00:02]} Nb6 {[%emt 0:00:11]} 6. Bb3 {[%emt 0:00:05]} Bg7 {[%emt 0:00:14]} 7. Qe2 {[%emt 0:09:16]} Nc6 {[%emt 0:00:00]} 8. O-O {[%emt 0:10:48]} O-O {[%emt 0:27:49]} 9. h3 {[%emt 0:04:03]} Na5 {[%emt 0:05:59]} 10. Rd1 {[%emt 0:02:35]} Nxb3 {[%emt 0:03:54]} 11. axb3 {[%emt 0:00:03]} Bf5 {[%emt 0:02:30]} 12. Nc3 {[%emt 0:00:45]} c6 {[%emt 0:04:03]} 13. Bf4 {[%emt 0:12:16]} Qc7 {[%emt 0:15:14]} 14. Rd2 {[%emt 0:00:37]} Rfd8 {[%emt 0:02:27]} 15. Rad1 {[%emt 0:14:22]} a5 {[%emt 0:04:17]} 16. Re1 {[%emt 0:03:22]} Rac8 {[%emt 0:06:44]} 17. Qd1 {[%emt 0:05:58]} Be6 {[%emt 0:04:20]} 18. Ng5 {[%emt 0:07:39]} Bd5 {[%emt 0:01:22]} 19. e6 {[%emt 0:00:29]} f6 {[%emt 0:06:58]} 20. Nf7 {[%emt 0:00:38]} Rf8 {[%emt 0:01:53]} 21. Nh6+ {[%emt 0:00:23]} Kh8 {[%emt 0:00:54]} 22. h4 {[%emt 0:00:54]} Ra8 {[%emt 0:02:50]} 23. Qg4 {[%emt 0:06:45]} Qc8 {[%emt 0:01:22]} 24. Qg3 {[%emt 0:05:19]} a4 {[%emt 0:03:13]} 25. Nxa4 {[%emt 0:03:48]} Nxa4 {[%emt 0:00:42]} 26. bxa4 {[%emt 0:00:03]} Rxa4 {[%emt 0:01:33]} 27. b3 {[%emt 0:06:38]} Ra2 {[%emt 0:00:17]} 28. Rde2 {[%emt 0:00:15]} b5 {[%emt 0:00:13]} 29. Nf7+ {[%emt 0:02:44]} Kg8 {[%emt 0:00:01]} 30. h5 Rxf7 {[%emt 0:03:10]} 31. exf7+ {[%emt 0:01:21]} Bxf7 {[%emt 0:00:04]} 32. hxg6 {[%emt 0:00:21]} hxg6 {[%emt 0:00:14]} 33. Rxe7 {[%emt 0:00:13]} Rxc2 {[%emt 0:00:44]} 34. Bxd6 {[%emt 0:00:14]} Qf5 {[%emt 0:01:00]} 35. Rb7 {[%emt 0:02:44]} Bxb3 {[%emt 0:01:56]} 36. Qxb3+ {[%emt 0:00:12]} 1-0

[Event "FRA-chT Top 12 2019"]
[Site "Brest"]
[Date "2019.05.25"]
[Round "8.7"]
[White "Koch, Jean-Rene"]
[Black "Geenen, Marc"]
[Result "1/2-1/2"]
[ECO "A28"]
[WhiteElo "2465"]
[BlackElo "2246"]
[Annotator "ChessBase"]
[PlyCount "72"]
[EventDate "2019.05.18"]
[EventType "team-tourn"]
[EventCountry "FRA"]
[SourceTitle "playchess.com"]
[Source "ChessBase"]
[SourceQuality "1"]
[TimeControl "40/5400+30:1800+30"]

1. c4 {[%emt 0:00:00]} e5 {[%emt 0:00:00]} 2. Nc3 {[%emt 0:00:00]} Nf6 {[%emt 0:00:00]} 3. Nf3 {[%emt 0:00:00]} Nc6 {[%emt 0:00:00]} 4. e3 {[%emt 0:00:00]} Bb4 {[%emt 0:00:00]} 5. Nd5 {[%emt 0:00:22]} e4 {[%emt 0:00:23]} 6. Ng1 {[%emt 0:00:08]} O-O {[%emt 0:00:23]} 7. a3 {[%emt 0:00:13]} Bd6 {[%emt 0:00:41]} 8. Qc2 {[%emt 0:00:40]} Re8 {[%emt 0:00:27]} 9. d3 {[%emt 0:00:14]} exd3 {[%emt 0:12:25]} 10. Bxd3 {[%emt 0:00:53]} g6 {[%emt 0:00:34]} 11. Nxf6+ {[%emt 0:13:53]} Qxf6 {[%emt 0:02:13]} 12. Nf3 {[%emt 0:00:08]} b6 {[%emt 0:18:51]} 13. Bd2 {[%emt 0:07:33]} Ne5 {[%emt 0:09:59]} 14. Be4 {[%emt 0:08:28]} Nxf3+ {[%emt 0:02:40]} 15. gxf3 {[%emt 0:09:29]} Rb8 {[%emt 0:01:44]} 16. O-O-O {[%emt 0:03:18]} Be5 {[%emt 0:03:03]} 17. h4 {[%emt 0:16:53]} c6 {[%emt 0:07:25]} 18. Kb1 {[%emt 0:04:46]} Bb7 {[%emt 0:10:47]} 19. h5 {[%emt 0:04:07]} d5 {[%emt 0:01:08]} 20. hxg6 {[%emt 0:03:44]} fxg6 {[%emt 0:16:36]} 21. Bd3 {[%emt 0:11:39]} Qxf3 {[%emt 0:04:42]} 22. Rdg1 {[%emt 0:02:06]} Re6 {[%emt 0:01:44]} 23. cxd5 {[%emt 0:06:38]} cxd5 {[%emt 0:03:15]} 24. Bxg6 {[%emt 0:01:19]} hxg6 {[%emt 0:00:48]} 25. Rxg6+ {[%emt 0:00:06]} Rxg6 {[%emt 0:01:27]} 26. Qxg6+ {[%emt 0:00:02]} Bg7 {[%emt 0:00:07]} 27. Rg1 {[%emt 0:01:25]} Qf7 {[%emt 0:00:39]} 28. Qd6 {[%emt 0:00:49]} Rc8 {[%emt 0:00:18]} 29. Bc3 {[%emt 0:01:37]} Rxc3 {[%emt 0:00:15]} 30. bxc3 {[%emt 0:00:03]} d4 {[%emt 0:01:30]} 31. Qd8+ {[%emt 0:02:34]} Kh7 {[%emt 0:00:09]} 32. Qh4+ {[%emt 0:00:34]} Kg8 33. Qxd4 {[%emt 0:00:43]} Qb3+ {[%emt 0:01:16]} 34. Kc1 {[%emt 0:00:25]} Qxa3+ {[%emt 0:00:05]} 35. Kb1 {[%emt 0:01:00]} Qb3+ {[%emt 0:00:59]} 36. Kc1 {[%emt 0:00:14]} Qa3+ {[%emt 0:00:01]} 1/2-1/2

[Event "FRA-chT Top 12 2019"]
[Site "Brest"]
[Date "2019.05.25"]
[Round "8.7"]
[White "Flear, Glenn C"]
[Black "Degraeve, Jean-Marc"]
[Result "1/2-1/2"]
[ECO "E73"]
[WhiteElo "2445"]
[BlackElo "2546"]
[Annotator "ChessBase"]
[PlyCount "49"]
[EventDate "2019.05.18"]
[EventType "team-tourn"]
[EventCountry "FRA"]
[SourceTitle "playchess.com"]
[Source "ChessBase"]
[SourceQuality "1"]
[TimeControl "40/5400+30:1800+30"]

1. d4 {[%emt 0:00:00]} Nf6 {[%emt 0:00:00]} 2. c4 {[%emt 0:00:00]} g6 {[%emt 0:00:00]} 3. Nc3 {[%emt 0:00:03]} Bg7 {[%emt 0:00:00]} 4. e4 {[%emt 0:00:09]} d6 {[%emt 0:00:05]} 5. Be2 {[%emt 0:00:17]} O-O {[%emt 0:03:19]} 6. Bg5 {[%emt 0:00:13]} Na6 {[%emt 0:00:50]} 7. Qd2 {[%emt 0:01:12]} e5 {[%emt 0:02:18]} 8. d5 {[%emt 0:00:09]} c6 {[%emt 0:00:43]} 9. f3 {[%emt 0:01:44]} cxd5 {[%emt 0:00:34]} 10. cxd5 {[%emt 0:00:25]} Bd7 {[%emt 0:00:40]} 11. Bd1 {[%emt 0:01:13]} Qa5 {[%emt 0:05:05]} 12. Nge2 {[%emt 0:10:44]} Rfc8 {[%emt 0:19:47]} 13. a3 {[%emt 0:08:25]} Be8 {[%emt 0:03:29]} 14. O-O {[%emt 0:05:32]} Nd7 {[%emt 0:05:29]} 15. b4 {[%emt 0:17:10]} Qc7 {[%emt 0:07:37]} 16. Na4 {[%emt 0:02:20]} Nb6 {[%emt 0:08:28]} 17. Nxb6 {[%emt 0:01:05]} Qxb6+ {[%emt 0:00:07]} 18. Be3 {[%emt 0:00:14]} Qd8 {[%emt 0:01:28]} 19. Bc2 {[%emt 0:03:15]} Nb8 {[%emt 0:02:27]} 20. Bd3 {[%emt 0:01:35]} Nd7 {[%emt 0:00:17]} 21. Rac1 {[%emt 0:03:44]} Nb6 {[%emt 0:00:37]} 22. Rxc8 {[%emt 0:03:11]} Rxc8 {[%emt 0:00:08]} 23. Rc1 {[%emt 0:01:30]} Rxc1+ {[%emt 0:00:31]} 24. Qxc1 {[%emt 0:00:37]} h5 {[%emt 0:00:43]} 25. h3 {[%emt 0:05:10]} 1/2-1/2

[Event "FRA-chT Top 12 2019"]
[Site "Brest"]
[Date "2019.05.25"]
[Round "8.7"]
[White "Iglesias, Joachim"]
[Black "Genzling, Alain"]
[Result "1/2-1/2"]
[ECO "A04"]
[WhiteElo "2276"]
[BlackElo "2376"]
[Annotator "NA"]
[PlyCount "68"]
[EventDate "2019.05.18"]
[EventType "team-tourn"]
[EventCountry "FRA"]
[SourceTitle "playchess.com"]
[Source "ChessBase"]
[SourceQuality "1"]
[TimeControl "40/5400+30:1800+30"]

1. Nf3 {[%emt 0:00:00]} c5 {[%emt 0:02:20]} 2. c4 {[%emt 0:00:31]} Nc6 {[%emt 0:07:28]} 3. b3 {[%emt 0:01:36]} Nf6 {[%emt 0:04:23]} 4. Bb2 {[%emt 0:00:31]} e6 {[%emt 0:00:37]} 5. e3 {[%emt 0:06:05]} Be7 {[%emt 0:01:25]} 6. Be2 {[%emt 0:00:28]} O-O {[%emt 0:01:53]} 7. O-O {[%emt 0:00:44]} b6 {[%emt 0:05:22]} 8. d3 {[%emt 0:02:55]} d5 {[%emt 0:03:58]} 9. cxd5 {[%emt 0:00:17]} Nxd5 {[%emt 0:04:31]} 10. a3 {[%emt 0:01:00]} Bf6 {[%emt 0:02:25]} 11. Qc2 {[%emt 0:03:53]} Bb7 {[%emt 0:01:58]} 12. Nbd2 {[%emt 0:02:54]} Qe7 {[%emt 0:10:54]} 13. Rfe1 {[%emt 0:06:05]} Bxb2 {[%emt 0:12:04]} 14. Qxb2 {[%emt 0:00:07]} e5 {[%emt 0:00:50]} 15. Rac1 {[%emt 0:04:09]} Rfe8 {[%emt 0:03:14]} 16. Bd1 {[%emt 0:13:26]} Rad8 {[%emt 0:04:50]} 17. Bc2 {[%emt 0:00:31]} f5 {[%emt 0:12:29]} 18. b4 {[%emt 0:12:10]} cxb4 {[%emt 0:02:56]} 19. Ba4 {[%emt 0:01:14]} Qf6 {[%emt 0:01:32]} 20. Bxc6 {[%emt 0:03:07]} Bxc6 {[%emt 0:00:07]} 21. axb4 {[%emt 0:00:18]} Bb5 {[%emt 0:04:21]} 22. d4 {[%emt 0:02:25]} e4 {[%emt 0:04:49]} 23. Ne5 {[%emt 0:00:11]} Qd6 {[%emt 0:01:39]} 24. Qa2 {[%emt 0:06:40]} Re7 {[%emt 0:01:27]} 25. Ndc4 {[%emt 0:04:00]} Qxb4 {[%emt 0:02:17]} 26. Na3 {[%emt 0:07:30]} Be8 {[%emt 0:00:10]} 27. Re2 {[%emt 0:02:53]} Bf7 {[%emt 0:02:38]} 28. Nc6 {[%emt 0:02:59]} Rc7 {[%emt 0:00:21]} 29. Qa1 {[%emt 0:00:13]} Rdc8 {[%emt 0:00:40]} 30. Rec2 {[%emt 0:00:19]} Qf8 {[%emt 0:00:50]} 31. Nb5 {[%emt 0:00:27]} Rd7 {[%emt 0:00:17]} 32. Ne5 {[%emt 0:05:09]} Rxc2 {[%emt 0:00:01]} 33. Rxc2 {[%emt 0:00:31]} Rd8 {[%emt 0:00:01]} 34. Nxa7 {[%emt 0:00:35]} Ra8 {[%emt 0:00:31]} 1/2-1/2

[Event "FRA-chT Top 12 2019"]
[Site "Brest"]
[Date "2019.05.25"]
[Round "8.7"]
[White "Nelis, Jean-Francois"]
[Black "Riff, Jean-Noel"]
[Result "0-1"]
[ECO "A45"]
[WhiteElo "2149"]
[BlackElo "2494"]
[Annotator "ChessBase"]
[PlyCount "100"]
[EventDate "2019.05.18"]
[EventType "team-tourn"]
[EventCountry "FRA"]
[SourceTitle "playchess.com"]
[Source "ChessBase"]
[SourceQuality "1"]
[TimeControl "40/5400+30:1800+30"]

1. d4 {[%emt 0:00:00]} Nf6 {[%emt 0:00:00]} 2. Bf4 {[%emt 0:00:00]} b6 {[%emt 0:01:31]} 3. e3 {[%emt 0:00:12]} Bb7 {[%emt 0:00:07]} 4. h3 {[%emt 0:03:03]} g6 {[%emt 0:00:40]} 5. Nf3 {[%emt 0:00:09]} Bg7 {[%emt 0:00:06]} 6. Be2 {[%emt 0:00:24]} O-O {[%emt 0:00:07]} 7. O-O {[%emt 0:01:22]} d6 {[%emt 0:02:16]} 8. a4 {[%emt 0:00:54]} Nbd7 {[%emt 0:03:25]} 9. a5 {[%emt 0:03:43]} bxa5 {[%emt 0:00:10]} 10. c3 {[%emt 0:00:48]} c5 {[%emt 0:05:46]} 11. Qa4 {[%emt 0:05:57]} Qb6 {[%emt 0:02:50]} 12. Nbd2 {[%emt 0:06:44]} Bc6 {[%emt 0:02:02]} 13. Qxa5 {[%emt 0:00:44]} Nd5 {[%emt 0:03:33]} 14. Qxb6 {[%emt 0:08:08]} axb6 {[%emt 0:00:51]} 15. Bh2 {[%emt 0:01:06]} Rfc8 {[%emt 0:13:31]} 16. Rfc1 {[%emt 0:06:59]} Bh6 {[%emt 0:03:35]} 17. Kf1 {[%emt 0:11:14]} Bb7 {[%emt 0:02:18]} 18. Nb3 {[%emt 0:08:37]} f5 {[%emt 0:02:21]} 19. Rxa8 {[%emt 0:01:21]} Rxa8 {[%emt 0:01:51]} 20. Ra1 {[%emt 0:00:09]} Rxa1+ {[%emt 0:00:27]} 21. Nxa1 {[%emt 0:00:05]} f4 {[%emt 0:00:06]} 22. exf4 {[%emt 0:02:00]} Nxf4 {[%emt 0:00:42]} 23. Bxf4 {[%emt 0:02:03]} Bxf4 {[%emt 0:00:33]} 24. Nc2 {[%emt 0:07:08]} Bc1 {[%emt 0:01:49]} 25. b4 {[%emt 0:08:05]} Bb2 {[%emt 0:00:42]} 26. bxc5 {[%emt 0:05:51]} bxc5 {[%emt 0:00:11]} 27. Bb5 {[%emt 0:03:09]} Nf8 {[%emt 0:04:18]} 28. dxc5 {[%emt 0:02:09]} dxc5 {[%emt 0:00:29]} 29. c4 {[%emt 0:04:17]} Ne6 {[%emt 0:00:22]} 30. Nfe1 {[%emt 0:01:47]} Bc3 {[%emt 0:03:45]} 31. h4 {[%emt 0:01:14]} Kf7 {[%emt 0:00:13]} 32. g3 {[%emt 0:01:11]} Nc7 {[%emt 0:03:42]} 33. Ba4 {[%emt 0:00:46]} Ke6 {[%emt 0:00:06]} 34. Nd3 {[%emt 0:00:58]} Kd6 {[%emt 0:00:02]} 35. Ke2 {[%emt 0:01:59]} Ba6 {[%emt 0:00:37]} 36. Na3 {[%emt 0:00:45]} Ne6 {[%emt 0:02:14]} 37. Nb5+ {[%emt 0:00:52]} Bxb5 {[%emt 0:00:03]} 38. cxb5 {[%emt 0:00:55]} c4 {[%emt 0:00:05]} 39. Nc1 {[%emt 0:01:01]} Kc5 {[%emt 0:00:33]} 40. Kf3 {[%emt 0:01:30]} Nd4+ {[%emt 0:00:26]} 41. Kg4 {[%emt 0:02:30]} Bd2 {[%emt 0:01:32]} 42. Na2 {[%emt 0:03:12]} c3 {[%emt 0:01:24]} 43. f4 {[%emt 0:02:28]} c2 {[%emt 0:01:23]} 44. Kg5 {[%emt 0:01:25]} e5 {[%emt 0:01:30]} 45. b6 {[%emt 0:04:33]} Kxb6 {[%emt 0:00:05]} 46. Bd7 {[%emt 0:03:16]} e4 {[%emt 0:00:04]} 47. Bh3 {[%emt 0:01:06]} e3 {[%emt 0:00:04]} 48. Bf1 {[%emt 0:00:12]} e2 {[%emt 0:00:03]} 49. Bxe2 {[%emt 0:00:07]} Nxe2 {[%emt 0:00:02]} 50. Kh6 {[%emt 0:00:16]} Nc3 {[%emt 0:00:04]} 0-1

[Event "FRA-chT Top 12 2019"]
[Site "Brest"]
[Date "2019.05.25"]
[Round "8.7"]
[White "Vaugeois, Cyrille"]
[Black "Loiseau, Quentin"]
[Result "0-1"]
[ECO "B31"]
[WhiteElo "2146"]
[BlackElo "2471"]
[Annotator "ChessBase"]
[PlyCount "72"]
[EventDate "2019.05.18"]
[EventType "team-tourn"]
[EventCountry "FRA"]
[SourceTitle "playchess.com"]
[Source "ChessBase"]
[SourceQuality "1"]
[TimeControl "40/5400+30:1800+30"]

1. e4 {[%emt 0:00:00]} c5 {[%emt 0:00:10]} 2. Nf3 {[%emt 0:00:00]} Nc6 {[%emt 0:00:11]} 3. Bb5 {[%emt 0:00:32]} g6 {[%emt 0:00:11]} 4. Bxc6 {[%emt 0:01:00]} dxc6 {[%emt 0:00:18]} 5. d3 {[%emt 0:01:07]} Bg7 {[%emt 0:00:10]} 6. O-O {[%emt 0:00:51]} Nf6 {[%emt 0:02:57]} 7. Nc3 {[%emt 0:01:20]} Nd7 {[%emt 0:03:06]} 8. Be3 {[%emt 0:03:27]} e5 {[%emt 0:01:46]} 9. Nd2 {[%emt 0:15:37]} Qe7 {[%emt 0:45:19]} 10. a4 {[%emt 0:07:01]} b6 {[%emt 0:03:50]} 11. Nc4 {[%emt 0:15:26]} Ba6 {[%emt 0:03:19]} 12. Qe2 {[%emt 0:12:11]} Nf8 {[%emt 0:06:50]} 13. Na2 {[%emt 0:13:35]} Ne6 {[%emt 0:00:50]} 14. c3 {[%emt 0:02:14]} O-O {[%emt 0:01:54]} 15. Rab1 {[%emt 0:04:39]} f5 {[%emt 0:06:46]} 16. f3 {[%emt 0:01:44]} f4 {[%emt 0:00:28]} 17. Bf2 {[%emt 0:00:08]} g5 {[%emt 0:02:43]} 18. b4 {[%emt 0:01:20]} Rad8 {[%emt 0:00:31]} 19. b5 {[%emt 0:01:26]} cxb5 {[%emt 0:00:09]} 20. axb5 {[%emt 0:00:08]} Bc8 {[%emt 0:00:11]} 21. Rfd1 {[%emt 0:02:15]} h5 {[%emt 0:03:27]} 22. Nc1 {[%emt 0:01:02]} g4 {[%emt 0:01:09]} 23. Qa2 {[%emt 0:00:23]} Kh8 {[%emt 0:02:10]} 24. Kf1 {[%emt 0:01:35]} Ng5 {[%emt 0:01:34]} 25. Bh4 {[%emt 0:01:38]} gxf3 {[%emt 0:00:32]} 26. gxf3 {[%emt 0:00:12]} Bh3+ {[%emt 0:00:27]} 27. Ke2 {[%emt 0:00:28]} Bf6 {[%emt 0:01:10]} 28. Bxg5 {[%emt 0:01:25]} Bxg5 {[%emt 0:00:01]} 29. Nb3 {[%emt 0:00:37]} Rg8 {[%emt 0:01:23]} 30. Rg1 {[%emt 0:00:24]} Bf6 {[%emt 0:01:18]} 31. Qa1 {[%emt 0:00:20]} Bg2 {[%emt 0:02:21]} 32. Rbd1 {[%emt 0:02:09]} Qd7 {[%emt 0:00:35]} 33. d4 {[%emt 0:04:13]} Qxb5 {[%emt 0:02:08]} 34. Nbd2 {[%emt 0:01:35]} cxd4 {[%emt 0:00:39]} 35. cxd4 {[%emt 0:04:02]} Rxd4 {[%emt 0:00:27]} 36. Kf2 {[%emt 0:00:32]} Bh4+ 0-1

[Event "FRA-chT Top 12 2019"]
[Site "Brest"]
[Date "2019.05.25"]
[Round "8.8"]
[White "Libiszewski, Fabien"]
[Black "Sebag, Marie"]
[Result "1-0"]
[ECO "B23"]
[WhiteElo "2511"]
[BlackElo "2476"]
[Annotator "ChessBase"]
[PlyCount "105"]
[EventDate "2019.05.18"]
[EventType "team-tourn"]
[EventCountry "FRA"]
[SourceTitle "playchess.com"]
[Source "ChessBase"]
[SourceQuality "1"]
[TimeControl "40/5400+30:1800+30"]

1. e4 {[%emt 0:00:12]} c5 {[%emt 0:00:00]} 2. Nc3 {[%emt 0:00:09]} a6 {[%emt 0:00:02]} 3. g3 {[%emt 0:00:20]} b5 {[%emt 0:04:51]} 4. Bg2 {[%emt 0:00:41]} Bb7 {[%emt 0:00:39]} 5. Nh3 {[%emt 0:01:08]} e6 {[%emt 0:07:13]} 6. O-O {[%emt 0:03:41]} Qc7 {[%emt 0:06:35]} 7. d3 {[%emt 0:06:57]} Nf6 {[%emt 0:05:04]} 8. f4 {[%emt 0:01:08]} d6 {[%emt 0:09:02]} 9. e5 {[%emt 0:28:19]} Bxg2 {[%emt 0:18:19]} 10. Kxg2 {[%emt 0:00:14]} Qc6+ {[%emt 0:14:13]} 11. Kg1 {[%emt 0:01:39]} Nfd7 {[%emt 0:11:39]} 12. exd6 {[%emt 0:12:14]} Nf6 {[%emt 0:00:33]} 13. a4 {[%emt 0:12:34]} b4 {[%emt 0:00:44]} 14. Ne4 {[%emt 0:00:12]} Nxe4 {[%emt 0:05:10]} 15. dxe4 {[%emt 0:00:05]} Bxd6 {[%emt 0:01:13]} 16. Qe2 {[%emt 0:12:23]} O-O {[%emt 0:01:39]} 17. Rd1 {[%emt 0:00:09]} c4 {[%emt 0:01:00]} 18. Be3 {[%emt 0:01:09]} Nd7 {[%emt 0:05:10]} 19. Nf2 {[%emt 0:00:09]} Be7 {[%emt 0:01:05]} 20. Rd4 {[%emt 0:04:32]} Rac8 {[%emt 0:00:24]} 21. Rad1 {[%emt 0:00:51]} Nf6 {[%emt 0:01:37]} 22. g4 {[%emt 0:07:23]} Rfd8 {[%emt 0:01:27]} 23. g5 {[%emt 0:01:03]} Ne8 {[%emt 0:00:24]} 24. b3 {[%emt 0:00:22]} Rxd4 {[%emt 0:00:52]} 25. Rxd4 {[%emt 0:00:48]} cxb3 {[%emt 0:00:43]} 26. cxb3 {[%emt 0:00:04]} Rd8 {[%emt 0:00:51]} 27. Rc4 {[%emt 0:01:37]} Qd7 {[%emt 0:00:10]} 28. Qc2 {[%emt 0:00:35]} g6 {[%emt 0:00:53]} 29. Kg2 {[%emt 0:01:37]} Bf8 {[%emt 0:01:28]} 30. Bb6 {[%emt 0:00:38]} Rb8 {[%emt 0:00:11]} 31. Bd4 {[%emt 0:00:09]} Nd6 {[%emt 0:01:05]} 32. Ng4 {[%emt 0:01:32]} Be7 {[%emt 0:00:52]} 33. Rc7 {[%emt 0:00:47]} Rc8 {[%emt 0:00:19]} 34. Rxd7 {[%emt 0:00:22]} Rxc2+ {[%emt 0:00:04]} 35. Kf3 {[%emt 0:00:08]} Kf8 {[%emt 0:00:53]} 36. Bf6 {[%emt 0:01:15]} Nc8 {[%emt 0:00:52]} 37. Bxe7+ {[%emt 0:00:43]} Nxe7 {[%emt 0:00:01]} 38. Rd8+ {[%emt 0:00:11]} Kg7 {[%emt 0:00:02]} 39. Nf6 {[%emt 0:00:08]} Rc8 {[%emt 0:01:29]} 40. Rxc8 {[%emt 0:01:04]} Nxc8 {[%emt 0:00:04]} 41. Ke3 {[%emt 0:30:11]} e5 {[%emt 0:30:55]} 42. fxe5 {[%emt 0:00:00]} Ne7 {[%emt 0:00:00]} 43. Kd4 {[%emt 0:00:00]} Nc6+ {[%emt 0:00:00]} 44. Kd5 {[%emt 0:00:00]} Na5 {[%emt 0:00:00]} 45. Kc5 {[%emt 0:00:00]} Nxb3+ {[%emt 0:00:00]} 46. Kxb4 {[%emt 0:00:00]} Nd4 {[%emt 0:00:00]} 47. Ka5 {[%emt 0:00:00]} Kf8 {[%emt 0:00:00]} 48. Kxa6 {[%emt 0:00:00]} Ke7 {[%emt 0:00:00]} 49. a5 {[%emt 0:00:00]} Kd8 {[%emt 0:00:00]} 50. Kb7 {[%emt 0:00:00]} Nb3 {[%emt 0:00:00]} 51. a6 {[%emt 0:00:00]} Nc5+ {[%emt 0:00:00]} 52. Kb6 {[%emt 0:00:00]} Na4+ {[%emt 0:00:00]} 53. Kc6 {[%emt 0:00:00]} 1-0